fUSD/lending_fUSD_20260521
["ID","MTS","AMOUNT","RATE_DAILY","PERIOD"]
[422755742,1779369032000,-225.4,0.00015068,2]
[422755748,1779369032000,-996.2119202,0.00015512,2]
[422755749,1779369032000,-433.0,0.00015589,2]
[422755747,1779369032000,-500.0,0.00015511,2]
[422755750,1779369032000,-358.49694953,0.00015603,2]
[422755716,1779369032000,-500.0,0.00014998,2]
[422755731,1779369032000,-500.0,0.00014999,2]
[422755736,1779369032000,-430.94688997,0.00014999,2]
[422755745,1779369032000,-500.0,0.00015511,2]
[422755735,1779369032000,-500.0,0.00014999,2]
[422755718,1779369032000,-500.0,0.00014998,2]
[422755727,1779369032000,-500.0,0.00014999,2]
[422755721,1779369032000,-500.0,0.00014999,2]
[422755717,1779369032000,-500.0,0.00014998,2]
[422755723,1779369032000,-1349.28756852,0.00014999,5]
[422755722,1779369032000,-500.0,0.00014999,2]
[422755720,1779369032000,-588.1483846,0.00014999,2]
[422755719,1779369032000,-500.0,0.00014998,2]
[422755725,1779369032000,-500.0,0.00014999,2]
[422755728,1779369032000,-1374.75,0.00014999,2]
[422755726,1779369032000,-500.0,0.00014999,2]
[422755729,1779369032000,-500.0,0.00014999,2]
[422755732,1779369032000,-500.0,0.00014999,2]
[422755733,1779369032000,-500.0,0.00014999,2]
[422755734,1779369032000,-500.0,0.00014999,2]
[422755777,1779369033000,-2299.8674127,0.00017456,2]
[422755770,1779369033000,-158.0,0.00017148,2]
[422755772,1779369033000,-338.0,0.0001726,2]
[422755776,1779369033000,-5642.70944217,0.000174,2]
[422755779,1779369033000,-5642.70944217,0.000176,2]
[422755780,1779369033000,-500.0,0.00017799,2]
[422755778,1779369033000,-847.0,0.0001751,5]
[422755773,1779369033000,-5642.70944217,0.000173,2]
[422755781,1779369033000,-5642.70944217,0.000178,2]
[422755788,1779369033000,-1103.26278042,0.00017808,2]
[422755787,1779369033000,-1103.26278042,0.00017808,2]
[422755785,1779369033000,-1103.26278042,0.00017808,2]
[422755786,1779369033000,-1103.26278042,0.00017808,2]
[422755784,1779369033000,-1103.26278042,0.00017808,2]
[422755782,1779369033000,-485.48653908,0.00017807,2]
[422755798,1779369033000,-1103.26278042,0.00017808,2]
[422755796,1779369033000,-1103.26278042,0.00017808,2]
[422755774,1779369033000,-207.0136216,0.000173,2]
[422755783,1779369033000,-1103.26278042,0.00017808,2]
[422755764,1779369033000,-169.62,0.00016742,2]
[422755755,1779369033000,-226.88542332,0.00016,2]
[422755769,1779369033000,-5642.70944217,0.000171,2]
[422755797,1779369033000,-1103.26278042,0.00017808,2]
[422755751,1779369033000,-793.50305047,0.00015603,2]
[422755752,1779369033000,-2360.0,0.00015646,2]
[422755754,1779369033000,-1350.88361688,0.00015948,2]
[422755753,1779369033000,-1102.85,0.00015769,2]
[422755758,1779369033000,-226.88542332,0.000162,2]
[422755757,1779369033000,-166.67,0.00016101,2]
[422755759,1779369033000,-258.3,0.00016438,2]
[422755771,1779369033000,-1613.0,0.00017151,2]
[422755760,1779369033000,-225.4,0.00016438,2]
[422755761,1779369033000,-5642.70944217,0.000166,2]
[422755763,1779369033000,-500.0,0.00016633,2]
[422755762,1779369033000,-151.0,0.000166,2]
[422755775,1779369033000,-1102.85,0.00017346,2]
[422755765,1779369033000,-5642.70944217,0.000168,2]
[422755767,1779369033000,-5642.70944217,0.000169,2]
[422755766,1779369033000,-2023.365287,0.00016837,2]
[422755768,1779369033000,-736.0,0.00016903,2]
[422755756,1779369033000,-226.88542332,0.000161,2]
[422755800,1779369033000,-1103.26278042,0.00017808,2]
[422755790,1779369033000,-1103.26278042,0.00017808,2]
[422755789,1779369033000,-1103.26278042,0.00017808,2]
[422755822,1779369033000,-837.77126088,0.00017808,2]
[422755813,1779369033000,-1103.26278042,0.00017808,2]
[422755821,1779369033000,-1103.26278042,0.00017808,2]
[422755820,1779369033000,-1103.26278042,0.00017808,2]
[422755823,1779369033000,-265.49151954,0.00017808,2]
[422755824,1779369033000,-338.73351837,0.00017808,2]
[422755825,1779369033000,-764.52926205,0.00017808,2]
[422755827,1779369033000,-580.06916751,0.00017808,2]
[422755826,1779369033000,-1103.26278042,0.00017808,2]
[422755833,1779369033000,-878.89128497,0.00017808,2]
[422755831,1779369033000,-462.01135139,0.00017808,2]
[422755829,1779369033000,-21.64161506,0.00017808,2]
[422755830,1779369033000,-394.142714,0.00017808,2]
[422755832,1779369033000,-247.10871503,0.00017808,2]
[422755828,1779369033000,-501.55199785,0.00017808,2]
[422755834,1779369033000,-224.37149545,0.00017808,2]
[422755836,1779369033000,-1103.26278042,0.00017808,2]
[422755835,1779369033000,-1103.26278042,0.00017808,2]
[422755799,1779369033000,-1103.26278042,0.00017808,2]
[422755819,1779369033000,-1103.26278042,0.00017808,2]
[422755818,1779369033000,-1103.26278042,0.00017808,2]
[422755816,1779369033000,-1103.26278042,0.00017808,2]
[422755815,1779369033000,-1103.26278042,0.00017808,2]
[422755795,1779369033000,-1103.26278042,0.00017808,2]
[422755794,1779369033000,-1103.26278042,0.00017808,2]
[422755837,1779369033000,-394.20410219,0.00017808,2]
[422755793,1779369033000,-1103.26278042,0.00017808,2]
[422755791,1779369033000,-1103.26278042,0.00017808,2]
[422755792,1779369033000,-1103.26278042,0.00017808,2]
[422755801,1779369033000,-1103.26278042,0.00017808,2]
[422755817,1779369033000,-1103.26278042,0.00017808,2]
[422755805,1779369033000,-1103.26278042,0.00017808,2]
[422755807,1779369033000,-1103.26278042,0.00017808,2]
[422755803,1779369033000,-1103.26278042,0.00017808,2]
[422755808,1779369033000,-1103.26278042,0.00017808,2]
[422755802,1779369033000,-1103.26278042,0.00017808,2]
[422755806,1779369033000,-1103.26278042,0.00017808,2]
[422755810,1779369033000,-1103.26278042,0.00017808,2]
[422755809,1779369033000,-1103.26278042,0.00017808,2]
[422755811,1779369033000,-1103.26278042,0.00017808,2]
[422755812,1779369033000,-1103.26278042,0.00017808,2]
[422755814,1779369033000,-1103.26278042,0.00017808,2]
[422755804,1779369033000,-1103.26278042,0.00017808,2]
[422755843,1779369037000,-709.05867823,0.00017808,2]
[422755839,1779369037000,-160.0,0.00017452,2]
[422755841,1779369037000,-1443.181119,0.00017452,2]
[422755845,1779369037000,-1103.26278042,0.00017808,2]
[422755847,1779369037000,-1103.26278042,0.00017808,2]
[422755844,1779369037000,-1103.26278042,0.00017808,2]
[422755842,1779369037000,-182.36433891,0.000176,2]
[422755846,1779369037000,-1103.26278042,0.00017808,2]
[422755848,1779369037000,-1103.26278042,0.00017808,2]
[422755850,1779369037000,-1103.26278042,0.00017808,2]
[422755853,1779369037000,-288.18867524,0.00017808,2]
[422755851,1779369037000,-1103.26278042,0.00017808,2]
[422755849,1779369037000,-1103.26278042,0.00017808,2]
[422755852,1779369037000,-206.12618584,0.00017808,2]
[422755840,1779369037000,-801.590559,0.00017452,2]
[422755854,1779369038000,-608.94791934,0.00017808,2]
[422755855,1779369038000,-869.68222725,0.00017808,2]
[422755856,1779369038000,-233.58055317,0.00017808,2]
[422755857,1779369038000,-1017.33971579,0.00017808,2]
[422755859,1779369038000,-1086.02429948,0.00017808,2]
[422755861,1779369038000,-1086.02429948,0.00017808,2]
[422755863,1779369038000,-268.61183951,0.00017808,2]
[422755862,1779369038000,-817.41245997,0.00017808,2]
[422755864,1779369038000,-350.52557749,0.00017808,2]
[422755860,1779369038000,-1086.02429948,0.00017808,2]
[422755858,1779369038000,-68.68458369,0.00017808,2]
[422756003,1779369040000,-1086.02429948,0.00017808,2]
[422756002,1779369040000,-735.49872199,0.00017808,2]
[422756005,1779369040000,-520.22044379,0.00017808,2]
[422756004,1779369040000,-1086.02429948,0.00017808,2]
[422756009,1779369040000,-731.19879593,0.00017808,2]
[422756008,1779369040000,-679.66817189,0.00017808,2]
[422756007,1779369040000,-406.35612759,0.00017808,2]
[422756010,1779369040000,-354.82550355,0.00017808,2]
[422756013,1779369040000,-217.12736371,0.00017808,2]
[422756006,1779369040000,-565.80385569,0.00017808,2]
[422756042,1779369043000,-1086.02429948,0.00017808,2]
[422756045,1779369043000,-122.23196523,0.00017808,2]
[422756043,1779369043000,-693.94713515,0.00017808,2]
[422756047,1779369043000,-1086.02429948,0.00017808,2]
[422756036,1779369043000,-1086.02429948,0.00017808,2]
[422756053,1779369043000,-5642.70944217,0.00018,2]
[422756048,1779369043000,-1086.02429948,0.00017808,2]
[422756049,1779369043000,-1086.02429948,0.00017808,2]
[422756051,1779369043000,-800.0,0.000179,6]
[422756050,1779369043000,-151.0,0.00017808,2]
[422756059,1779369043000,-446.0,0.00018172,2]
[422756041,1779369043000,-1086.02429948,0.00017808,2]
[422756044,1779369043000,-269.8451991,0.00017808,2]
[422756037,1779369043000,-1086.02429948,0.00017808,2]
[422756019,1779369043000,-868.89693577,0.00017808,2]
[422756035,1779369043000,-1086.02429948,0.00017808,2]
[422756033,1779369043000,-1086.02429948,0.00017808,2]
[422756031,1779369043000,-1086.02429948,0.00017808,2]
[422756032,1779369043000,-1086.02429948,0.00017808,2]
[422756034,1779369043000,-1086.02429948,0.00017808,2]
[422756030,1779369043000,-263.95558339,0.00017808,2]
[422756025,1779369043000,-1086.02429948,0.00017808,2]
[422756027,1779369043000,-822.06871609,0.00017808,2]
[422756022,1779369043000,-1086.02429948,0.00017808,2]
[422756023,1779369043000,-1086.02429948,0.00017808,2]
[422756021,1779369043000,-1086.02429948,0.00017808,2]
[422756020,1779369043000,-1086.02429948,0.00017808,2]
[422756054,1779369043000,-655.38659151,0.00018,2]
[422756039,1779369043000,-1086.02429948,0.00017808,2]
[422756052,1779369043000,-500.58971678,0.00018,2]
[422756084,1779369043000,-6636.25,0.0001872,2]
[422756057,1779369043000,-162.0,0.00018148,2]
[422756089,1779369043000,-2504.11,0.000191,2]
[422756085,1779369043000,-2258.0,0.00018854,2]
[422756088,1779369043000,-1252.06,0.000191,2]
[422756083,1779369043000,-655.38659151,0.000187,2]
[422756091,1779369043000,-151.0,0.00019101,2]
[422756082,1779369043000,-500.58971678,0.000187,2]
[422756087,1779369043000,-1285.71,0.000191,2]
[422756086,1779369043000,-1102.85,0.00018923,2]
[422756081,1779369043000,-338.0,0.0001863,2]
[422756080,1779369043000,-655.38659151,0.000185,2]
[422756072,1779369043000,-655.38659151,0.000184,2]
[422756076,1779369043000,-500.0,0.00018409,2]
[422756073,1779369043000,-500.0,0.00018409,2]
[422756090,1779369043000,-2763.4,0.000191,2]
[422756075,1779369043000,-500.0,0.00018409,2]
[422756079,1779369043000,-500.58971678,0.000185,2]
[422756078,1779369043000,-169.33,0.00018464,2]
[422756069,1779369043000,-487.0,0.00018359,2]
[422756077,1779369043000,-258.3,0.0001841,2]
[422756070,1779369043000,-514.68,0.00018359,2]
[422756068,1779369043000,-487.0,0.00018359,2]
[422756071,1779369043000,-500.58971678,0.000184,2]
[422756067,1779369043000,-214.24,0.00018359,2]
[422756063,1779369043000,-655.38659151,0.000182,2]
[422756061,1779369043000,-500.58971678,0.000182,2]
[422756065,1779369043000,-1252.0,0.00018322,2]
[422756066,1779369043000,-1093.078036,0.00018324,2]
[422756064,1779369043000,-258.3,0.00018226,2]
[422756074,1779369043000,-500.0,0.00018409,2]
[422756055,1779369043000,-5642.70944217,0.000181,2]
[422756092,1779369044000,-2650.8731972,0.00019178,2]
[422756103,1779369045000,-16.77142065,0.0002,2]
[422756105,1779369045000,-151.0,0.0002,2]
[422756093,1779369045000,-151.0,0.00019178,2]
[422756094,1779369045000,-823.9999998,0.00019178,2]
[422756096,1779369045000,-2023.365287,0.00019306,2]
[422756106,1779369045000,-188.0,0.0002,2]
[422756102,1779369045000,-150.0,0.00019975,2]
[422756107,1779369045000,-163.44801193,0.0002,2]
[422756100,1779369045000,-841.0,0.00019896,5]
[422756099,1779369045000,-197.0,0.00019861,2]
[422756097,1779369045000,-845.0,0.00019341,5]
[422756098,1779369045000,-151.0,0.000198,2]
[422756104,1779369045000,-134.22857935,0.0002,2]
[422756095,1779369045000,-1922.816803,0.00019178,2]
[422756101,1779369045000,-1798.80895522,0.00019909,2]
[422756116,1779369046000,-258.3,0.00020381,2]
[422756120,1779369046000,-578.20924308,0.00020447,2]
[422756117,1779369046000,-315.0,0.000204,2]
[422756119,1779369046000,-1000.0,0.000204,2]
[422756121,1779369046000,-200.0,0.00020447,2]
[422756118,1779369046000,-308.0,0.000204,2]
[422756114,1779369046000,-858.74,0.0002,2]
[422756112,1779369046000,-320.0,0.0002,2]
[422756111,1779369046000,-228.0,0.0002,2]
[422756115,1779369046000,-568.400578,0.0002007,2]
[422756109,1779369046000,-248.0,0.0002,2]
[422756113,1779369046000,-152.18735834,0.0002,20]
[422756108,1779369046000,-1387.55198807,0.0002,2]
[422756110,1779369046000,-457.0,0.0002,2]
[422756123,1779369046000,-498.57978476,0.00020447,2]
[422756130,1779369046000,-150.0,0.0002058,2]
[422756122,1779369046000,-623.58710447,0.00020447,2]
[422756137,1779369046000,-1007.92,0.00020951,2]
[422756138,1779369046000,-12957.25836996,0.00020951,2]
[422756135,1779369046000,-150.99,0.00020951,2]
[422756132,1779369046000,-150.0,0.0002058,2]
[422756136,1779369046000,-56672.16364333,0.00020951,2]
[422756131,1779369046000,-150.0,0.0002058,2]
[422756133,1779369046000,-2369.0,0.00020725,2]
[422756127,1779369046000,-150.0,0.0002058,2]
[422756125,1779369046000,-150.0,0.0002058,2]
[422756124,1779369046000,-1865.36488656,0.00020457,2]
[422756129,1779369046000,-150.0,0.0002058,2]
[422756126,1779369046000,-150.0,0.0002058,2]
[422756128,1779369046000,-150.0,0.0002058,2]
[422756134,1779369046000,-9999.99,0.00020951,2]
[422756144,1779369062000,500.0,0.00027701,120]
[422756145,1779369073000,444.04054969,0.00028502,120]
[422756146,1779369082000,2402.739056,0.0002352,120]
[422756147,1779369137000,1950.23021069,0.00028767,120]
[422756150,1779369194000,178.41,0.0002857,120]
[422756151,1779369320000,1213.612158,0.00022422,120]
[422756152,1779369600000,204.49941718,0.0002327,120]
[422756153,1779369620000,500.0,0.00027747,120]
[422756154,1779369768000,1202.91,0.00027699,120]
[422756155,1779369770000,152.07557117,0.00028229,120]
[422756158,1779369976000,500.0,0.00027747,120]
[422756172,1779370140000,1000.0,0.00028766,120]
[422756182,1779370231000,-651.0,0.0001399,2]
[422756180,1779370231000,-157.91,7.252e-05,2]
[422756181,1779370231000,-295.0417951,0.0001399,2]
[422756210,1779370232000,-2415.75136053,0.000149,2]
[422756222,1779370232000,-500.0,0.00014999,2]
[422756230,1779370232000,-589.41011244,0.00014999,2]
[422756225,1779370232000,-500.0,0.00014999,2]
[422756224,1779370232000,-500.0,0.00014999,2]
[422756226,1779370232000,-500.0,0.00014999,2]
[422756227,1779370232000,-500.0,0.00014999,2]
[422756231,1779370232000,-500.0,0.00014999,2]
[422756228,1779370232000,-500.0,0.00014999,2]
[422756229,1779370232000,-500.0,0.00014999,2]
[422756232,1779370232000,-500.0,0.00014999,2]
[422756233,1779370232000,-500.0,0.00014999,2]
[422756235,1779370232000,-500.0,0.00014999,2]
[422756234,1779370232000,-500.0,0.00014999,2]
[422756237,1779370232000,-500.0,0.00014999,2]
[422756236,1779370232000,-500.0,0.00014999,2]
[422756238,1779370232000,-500.0,0.00014999,2]
[422756239,1779370232000,-500.0,0.00014999,2]
[422756240,1779370232000,-500.0,0.00014999,2]
[422756242,1779370232000,-500.0,0.00014999,2]
[422756243,1779370232000,-500.0,0.00014999,2]
[422756241,1779370232000,-500.0,0.00014999,2]
[422756219,1779370232000,-500.0,0.00014999,2]
[422756244,1779370232000,-500.0,0.00014999,2]
[422756248,1779370232000,-500.0,0.00014999,2]
[422756223,1779370232000,-500.0,0.00014999,2]
[422756213,1779370232000,-1839.303855,0.000149,2]
[422756197,1779370232000,-1600.0,0.00014261,2]
[422756214,1779370232000,-455.86,0.0001493,2]
[422756184,1779370232000,-1200.0,0.00013999,2]
[422756183,1779370232000,-5711.74051288,0.0001399,2]
[422756186,1779370232000,-472.1,0.00014,2]
[422756189,1779370232000,-2500.0,0.00014016,2]
[422756185,1779370232000,-250.0,0.00014,2]
[422756187,1779370232000,-2500.0,0.00014002,2]
[422756188,1779370232000,-300.0,0.00014004,2]
[422756191,1779370232000,-2500.0,0.00014016,2]
[422756192,1779370232000,-2500.0,0.00014016,2]
[422756193,1779370232000,-300.0,0.00014042,2]
[422756194,1779370232000,-300.0,0.00014042,2]
[422756204,1779370232000,-300.62772343,0.000148,2]
[422756195,1779370232000,-300.0,0.00014042,2]
[422756199,1779370232000,-200.0,0.00014438,2]
[422756196,1779370232000,-455.86,0.00014219,2]
[422756201,1779370232000,-177.04,0.00014684,2]
[422756200,1779370232000,-455.86,0.00014575,2]
[422756198,1779370232000,-1147.71,0.00014331,2]
[422756247,1779370232000,-500.0,0.00014999,2]
[422756202,1779370232000,-560.48,0.00014734,2]
[422756208,1779370232000,-163.32305236,0.000149,2]
[422756216,1779370232000,-156.202,0.00014998,2]
[422756206,1779370232000,-150.0,0.00014899,2]
[422756217,1779370232000,-500.0,0.00014999,2]
[422756221,1779370232000,-500.0,0.00014999,2]
[422756215,1779370232000,-449.431,0.00014998,2]
[422756218,1779370232000,-500.0,0.00014999,2]
[422756220,1779370232000,-500.0,0.00014999,2]
[422756246,1779370232000,-500.0,0.00014999,2]
[422756254,1779370232000,-500.0,0.00014999,2]
[422756249,1779370232000,-500.0,0.00014999,2]
[422756292,1779370232000,-642.59735356,0.00014999,2]
[422756282,1779370232000,-653.48883412,0.00014999,2]
[422756281,1779370232000,-653.48883412,0.00014999,2]
[422756245,1779370232000,-500.0,0.00014999,2]
[422756284,1779370232000,-653.48883412,0.00014999,2]
[422756283,1779370232000,-653.48883412,0.00014999,2]
[422756287,1779370232000,-653.48883412,0.00014999,2]
[422756288,1779370232000,-653.48883412,0.00014999,2]
[422756291,1779370232000,-642.59735356,0.00014999,2]
[422756286,1779370232000,-653.48883412,0.00014999,2]
[422756289,1779370232000,-653.48883412,0.00014999,2]
[422756290,1779370232000,-642.59735356,0.00014999,2]
[422756276,1779370232000,-653.48883412,0.00014999,2]
[422756294,1779370232000,-642.59735356,0.00014999,2]
[422756304,1779370232000,-642.59735356,0.00014999,2]
[422756302,1779370232000,-642.59735356,0.00014999,2]
[422756301,1779370232000,-642.59735356,0.00014999,2]
[422756305,1779370232000,-642.59735356,0.00014999,2]
[422756297,1779370232000,-642.59735356,0.00014999,2]
[422756296,1779370232000,-642.59735356,0.00014999,2]
[422756295,1779370232000,-642.59735356,0.00014999,2]
[422756300,1779370232000,-642.59735356,0.00014999,2]
[422756303,1779370232000,-642.59735356,0.00014999,2]
[422756299,1779370232000,-642.59735356,0.00014999,2]
[422756298,1779370232000,-642.59735356,0.00014999,2]
[422756306,1779370232000,-642.59735356,0.00014999,2]
[422756293,1779370232000,-642.59735356,0.00014999,2]
[422756274,1779370232000,-653.48883412,0.00014999,2]
[422756285,1779370232000,-653.48883412,0.00014999,2]
[422756275,1779370232000,-653.48883412,0.00014999,2]
[422756250,1779370232000,-500.0,0.00014999,2]
[422756252,1779370232000,-500.0,0.00014999,2]
[422756253,1779370232000,-500.0,0.00014999,2]
[422756251,1779370232000,-500.0,0.00014999,2]
[422756256,1779370232000,-500.0,0.00014999,2]
[422756255,1779370232000,-500.0,0.00014999,2]
[422756272,1779370232000,-653.48883412,0.00014999,2]
[422756257,1779370232000,-500.0,0.00014999,2]
[422756262,1779370232000,-653.48883412,0.00014999,2]
[422756258,1779370232000,-500.0,0.00014999,2]
[422756265,1779370232000,-653.48883412,0.00014999,2]
[422756263,1779370232000,-653.48883412,0.00014999,2]
[422756260,1779370232000,-500.0,0.00014999,2]
[422756259,1779370232000,-500.0,0.00014999,2]
[422756261,1779370232000,-500.0,0.00014999,2]
[422756280,1779370232000,-653.48883412,0.00014999,2]
[422756278,1779370232000,-653.48883412,0.00014999,2]
[422756279,1779370232000,-653.48883412,0.00014999,2]
[422756277,1779370232000,-653.48883412,0.00014999,2]
[422756273,1779370232000,-653.48883412,0.00014999,2]
[422756266,1779370232000,-653.48883412,0.00014999,2]
[422756271,1779370232000,-653.48883412,0.00014999,2]
[422756269,1779370232000,-653.48883412,0.00014999,2]
[422756267,1779370232000,-653.48883412,0.00014999,2]
[422756268,1779370232000,-653.48883412,0.00014999,2]
[422756264,1779370232000,-653.48883412,0.00014999,2]
[422756270,1779370232000,-653.48883412,0.00014999,2]
[422756318,1779370233000,-1031.680288,0.00015068,2]
[422756314,1779370233000,-351.15114035,0.00015,2]
[422756311,1779370233000,-136776.03979795,0.00015,2]
[422756313,1779370233000,-26686.69144537,0.00015,2]
[422756310,1779370233000,-271059.4111562,0.00015,2]
[422756317,1779370233000,-166.66,0.00015025,2]
[422756312,1779370233000,-27120.20807112,0.00015,2]
[422756315,1779370233000,-151.0,0.00015,2]
[422756309,1779370233000,-94501.49763701,0.00015,2]
[422756307,1779370233000,-642.59735354,0.00014999,2]
[422756316,1779370233000,-151.0,0.00015,2]
[422756308,1779370233000,-158.20432752,0.00014999,2]
[422756328,1779370233000,-1237.82230924,0.000155,2]
[422756320,1779370233000,-1031.680288,0.00015068,2]
[422756331,1779370233000,-388.27807364,0.00015543,2]
[422756330,1779370233000,-438.16366184,0.00015543,2]
[422756332,1779370233000,-508.0,0.00015543,2]
[422756329,1779370233000,-14532.26885408,0.00015543,2]
[422756325,1779370233000,-166.66,0.00015341,2]
[422756319,1779370233000,-1031.680288,0.00015068,2]
[422756324,1779370233000,-1517.64,0.000153,2]
[422756327,1779370233000,-2500.0,0.000154,2]
[422756323,1779370233000,-455.86,0.00015286,2]
[422756322,1779370233000,-159.52,0.00015129,2]
[422756321,1779370233000,-1031.680288,0.00015068,2]
[422756326,1779370233000,-300.0,0.000154,2]
[422756342,1779370238000,-357.39631745,0.00015543,2]
[422756341,1779370238000,-327.42504649,0.00015543,2]
[422756340,1779370238000,-1429.0397393,0.00015543,2]
[422756564,1779370240000,-1151.15977822,0.00015543,2]
[422756604,1779370240000,-483.65945066,0.00015543,2]
[422756601,1779370240000,-1208.62553117,0.00015543,2]
[422756643,1779370240000,-484.67847466,0.00015543,2]
[422756642,1779370240000,-750.0,0.00015543,2]
[422756644,1779370240000,-1655.35490122,0.00015543,2]
[422756665,1779370246000,-925.83147084,0.00015543,2]
[422756664,1779370246000,-13071.04367008,0.00015543,2]
[422756663,1779370246000,-444.38778338,0.00015543,2]
[422756673,1779370254000,2933.6,0.0002876,120]
[422756674,1779370313000,2329.05775614,0.00028767,120]
[422756675,1779370320000,497.32541565,0.00028204,120]
[422756676,1779370327000,355.23243975,0.00028204,120]
[422756677,1779370343000,1152.79,0.00027999,120]
[422756678,1779370357000,2000.0,0.00028767,120]
[422756679,1779370396000,500.0,0.00028767,120]
[422756681,1779370449000,662.0,0.00028767,120]
[422756682,1779370548000,500.0,0.00028315,120]
[422756683,1779370570000,4920.0,0.00027397,120]
[422756684,1779370795000,213.1810667,0.00028223,120]
[422756687,1779370881000,155.71650661,0.00028223,120]
[422756688,1779370903000,331.50709155,0.00027944,120]
[422756689,1779370909000,180.65144948,0.00028223,120]
[422756690,1779370964000,1104.75,0.00028067,120]
[422756691,1779371125000,170.0,0.000287,120]
[422756696,1779371341000,1000.0,0.00028766,120]
[422756697,1779371365000,792.97441,0.00028767,120]
[422756731,1779371432000,-507.55,0.000144,2]
[422756741,1779371432000,-3933.79765647,0.00014599,2]
[422756732,1779371432000,-200.0,0.0001444,2]
[422756745,1779371432000,-500.0,0.00014798,2]
[422756736,1779371432000,-1814.4355,0.00014599,2]
[422756748,1779371432000,-184.45396518,0.00014798,2]
[422756743,1779371432000,-2113.78244042,0.00014764,2]
[422756763,1779371432000,-500.0,0.00014798,2]
[422756729,1779371432000,-151.95,0.00014189,2]
[422756762,1779371432000,-500.0,0.00014798,2]
[422756752,1779371432000,-500.0,0.00014798,2]
[422756756,1779371432000,-500.0,0.00014798,2]
[422756750,1779371432000,-500.0,0.00014798,2]
[422756754,1779371432000,-500.0,0.00014798,2]
[422756758,1779371432000,-500.0,0.00014798,2]
[422756760,1779371432000,-500.0,0.00014798,2]
[422756770,1779371432000,-238.99779765,0.00014798,2]
[422756761,1779371432000,-500.0,0.00014798,2]
[422756733,1779371432000,-166.66,0.00014584,2]
[422756709,1779371432000,-157.81,7.025e-05,2]
[422756738,1779371432000,-95217.99904353,0.00014599,2]
[422756765,1779371432000,-500.0,0.00014798,2]
[422756710,1779371432000,-151.95,0.00013513,2]
[422756712,1779371432000,-188.26,0.00013563,2]
[422756711,1779371432000,-37.24,0.00013563,2]
[422756713,1779371432000,-1187.53962,0.00013667,2]
[422756715,1779371432000,-40878.26478529,0.00013667,2]
[422756714,1779371432000,-7959.19559469,0.00013667,2]
[422756716,1779371432000,-500.0,0.00013671,2]
[422756717,1779371432000,-1016.7,0.00013703,2]
[422756720,1779371432000,-6584.62,0.0001394,2]
[422756721,1779371432000,-6223.25,0.0001394,2]
[422756719,1779371432000,-150.0,0.00013939,2]
[422756718,1779371432000,-166.66,0.00013718,2]
[422756723,1779371432000,-163.45,0.00013987,2]
[422756725,1779371432000,-250.0,0.00014,2]
[422756722,1779371432000,-1280.0,0.00013964,2]
[422756724,1779371432000,-178.41,0.00013987,2]
[422756726,1779371432000,-166.66,0.00014007,2]
[422756728,1779371432000,-177.04,0.00014102,2]
[422756730,1779371432000,-166.66,0.00014295,2]
[422756776,1779371432000,-500.0,0.00014798,2]
[422756766,1779371432000,-500.0,0.00014798,2]
[422756773,1779371432000,-500.0,0.00014798,2]
[422756793,1779371432000,-500.0,0.00014798,2]
[422756795,1779371432000,-500.0,0.00014798,2]
[422756792,1779371432000,-500.0,0.00014798,2]
[422756794,1779371432000,-500.0,0.00014798,2]
[422756796,1779371432000,-500.0,0.00014798,2]
[422756791,1779371432000,-500.0,0.00014798,2]
[422756798,1779371432000,-500.0,0.00014798,2]
[422756797,1779371432000,-500.0,0.00014798,2]
[422756790,1779371432000,-500.0,0.00014798,2]
[422756802,1779371432000,-640.52338063,0.00014798,2]
[422756804,1779371432000,-1104.75,0.00014798,2]